bitfinex/quotes_SOLUSD_20260304
["timestamp","ask_amount","ask_price","bid_price","bid_amount"]
[1772610468153,2.53200445,87.209,87.17,5.45716601]
[1772610468350,2.53200445,87.248,87.19,5.45716601]
[1772610468565,2.53200445,87.229,87.19,5.45716601]
[1772610468969,2.53200445,87.219,87.19,5.45716601]
[1772610469168,7.98917046,87.23,87.2,5.45716601]
[1772610469375,2.53200445,87.23,87.2,5.45716601]
[1772610469756,7.98917046,87.23,87.2,5.45716601]
[1772610469950,2.53200445,87.23,87.2,5.45716601]
[1772610470157,2.53200445,87.229,87.201,11.46775839]
[1772610470848,2.53200445,87.219,87.19,5.45716601]
[1772610471252,2.53200445,87.219,87.18,5.45716601]
[1772610472078,5.45716601,87.2,87.154,28.68483137]
[1772610472258,2.53200445,87.189,87.154,0.15]
[1772610472571,40.12933109,87.218,87.154,0.15]
[1772610472572,2.53200445,87.179,87.154,0.15]
[1772610472749,2.53200445,87.159,87.12,5.45716601]
[1772610473176,2.53200445,87.149,87.11,5.45716601]
[1772610473474,2.53200445,87.139,87.1,5.45716601]
[1772610473772,2.53200445,87.139,87.11,5.45716601]
[1772610474070,2.53200445,87.137,87.093,29.40138939]
[1772610474280,2.53200445,87.153,87.13,5.45716601]
[1772610474480,2.53200445,87.165,87.14,5.45716601]
[1772610475351,2.53200445,87.165,87.13,5.45716601]
[1772610476670,2.53200445,87.159,87.13,5.45716601]
[1772610477376,57.34561117,87.191,87.13,5.45716601]
[1772610477377,7.98917046,87.17,87.13,5.45716601]
[1772610477573,2.53200445,87.168,87.13,5.45716601]
[1772610478370,2.53200445,87.168,87.121,11.47825997]
[1772610478682,2.53200445,87.168,87.13,5.4181595]
[1772610478860,2.53200445,87.159,87.13,5.4181595]
[1772610479561,2.53200445,87.159,87.131,11.47697145]
[1772610479969,5.4181595,87.17,87.131,11.47697145]
[1772610480170,2.53200445,87.168,87.14,5.4181595]
[1772610480357,2.53200445,87.169,87.131,11.47697145]
[1772610480557,2.53200445,87.149,87.111,11.47960647]
[1772610480784,2.53200445,87.149,87.12,5.4181595]
[1772610480965,5.4181595,87.16,87.104,3.69383402]
[1772610480966,2.53200445,87.159,87.121,11.47828881]
[1772610481285,2.53200445,87.158,87.121,11.47828881]
[1772610481664,2.53200445,87.158,87.13,5.4181595]
[1772610482071,7.95016395,87.19,87.15,5.4181595]
[1772610482280,2.53200445,87.189,87.15,5.4181595]
[1772610482472,2.53200445,87.189,87.16,5.4181595]
[1772610482673,2.53200445,87.202,87.18,5.4181595]
[1772610483061,2.53200445,87.202,87.181,11.47038919]
[1772610483262,2.53200445,87.215,87.19,5.4181595]
[1772610483464,2.53200445,87.215,87.18,5.4181595]
[1772610483869,11.46604902,87.214,87.18,16.88859909]
[1772610484382,11.46604902,87.214,87.18,11.47043959]
[1772610484686,11.46604902,87.214,87.129,1.14772349]
[1772610484687,2.53200445,87.199,87.16,11.47303788]
[1772610484879,2.53200445,87.199,87.16,16.89119738]
[1772610485086,7.95016395,87.19,87.16,5.4181595]
[1772610485278,2.53200445,87.199,87.16,5.4181595]
[1772610485479,5.95845676,87.3,87.194,2.65666411]
[1772610485687,5.5181595,87.27,87.23,5.4181595]
[1772610485870,40.1104757,87.259,87.203,2.65666411]
[1772610486184,5.4181595,87.24,87.21,5.4181595]
[1772610486487,40.1104757,87.259,87.21,5.4181595]
[1772610486661,5.4181595,87.24,87.21,5.4181595]
[1772610487061,5.4181595,87.24,87.191,2.65666411]
[1772610487062,11.46276321,87.239,87.2,5.4181595]
[1772610487265,5.4181595,87.25,87.22,5.4181595]
[1772610487474,2.53200445,87.249,87.22,5.4181595]
[1772610487685,2.53200445,87.249,87.21,5.4181595]
[1772610488064,0.1,87.26,87.24,5.4181595]
[1772610488264,2.63200445,87.26,87.24,5.4181595]
[1772610488464,11.46013591,87.259,87.23,5.4181595]
[1772610488681,2.53200445,87.258,87.23,5.4181595]
[1772610488882,0.1,87.26,87.25,5.4181595]
[1772610489066,5.4181595,87.28,87.25,5.4181595]
[1772610489386,2.53200445,87.306,87.27,5.4181595]
[1772610489567,2.53200445,87.306,87.28,5.4181595]
[1772610490293,11.45437674,87.303,87.28,5.4181595]
[1772610490468,2.53200445,87.335,87.281,2.65666411]
[1772610490787,5.4181595,87.4,87.29,5.4181595]
[1772610490788,5.4181595,87.32,87.29,5.4181595]
[1772610491087,2.53200445,87.317,87.28,5.4181595]
[1772610491595,2.53200445,87.309,87.272,11.45842882]
[1772610491966,2.53200445,87.299,87.248,3.69383402]
[1772610492166,45.78938695,87.357,87.245,11.46197489]
[1772610492167,5.95979895,87.366,87.291,0.61995867]
[1772610492377,2.54733286,87.371,87.35,5.4181595]
[1772610492667,2.54733286,87.371,87.353,5.96111913]
[1772610492873,2.53200445,87.369,87.33,5.4181595]
[1772610493190,2.53200445,87.357,87.32,5.4181595]
[1772610493486,2.53200445,87.369,87.33,5.4181595]
[1772610493788,2.53200445,87.359,87.32,5.4181595]
[1772610493970,2.53200445,87.359,87.241,45.84955749]
[1772610493971,2.53200445,87.329,87.288,2.65666411]
[1772610494291,2.53200445,87.319,87.29,5.4181595]
[1772610494474,2.53200445,87.319,87.28,5.4181595]
[1772610494668,5.4181595,87.3,87.265,2.65666411]
[1772610494870,5.4181595,87.31,87.27,5.4181595]
[1772610495191,19.4036953,87.31,87.271,11.45856011]
[1772610495374,2.53200445,87.336,87.3,5.4181595]
[1772610495570,5.4181595,87.33,87.291,2.65666411]
[1772610496264,5.4181595,87.32,87.276,2.65666411]
[1772610496470,5.4181595,87.32,87.28,2.65666411]
[1772610496686,2.53200445,87.329,87.29,8.07482361]
[1772610496978,2.53200445,87.329,87.29,2.65666411]
[1772610497188,2.53200445,87.329,87.292,2.65666411]
[1772610497685,5.4181595,87.31,87.285,11.45665455]
[1772610497870,2.53200445,87.34,87.291,2.65666411]
[1772610498182,7.95016395,87.34,87.3,5.4181595]
[1772610498384,5.4181595,87.32,87.284,2.79940115]
[1772610498582,5.4181595,87.33,87.291,2.79940115]
[1772610498989,5.4181595,87.32,87.291,2.79940115]
[1772610499179,5.4181595,87.33,87.292,11.45580351]
[1772610499385,11.45094985,87.329,87.292,11.45580351]
[1772610500186,5.4181595,87.34,87.301,2.79940115]
[1772610500384,5.4181595,87.34,87.31,5.4181595]
[1772610500779,2.71867693,87.348,87.311,2.5746488]
[1772610501276,5.4181595,87.34,87.312,11.4531794]
[1772610501470,14.16714526,87.348,87.313,2.5746488]
[1772610502090,5.4181595,87.34,87.313,2.5746488]
[1772610502290,5.4181595,87.35,87.321,2.5746488]
[1772610502499,2.71867693,87.384,87.331,2.5746488]
[1772610502680,5.4181595,87.35,87.32,5.4181595]
[1772610502994,5.4181595,87.36,87.321,2.5746488]
[1772610503292,2.71867693,87.371,87.331,2.5746488]
[1772610503690,5.4181595,87.37,87.331,2.5746488]
[1772610503884,2.71867693,87.349,87.31,5.4181595]
[1772610504096,5.4181595,87.34,87.31,5.4181595]
[1772610504289,40.0591212,87.371,87.301,2.5746488]
[1772610504290,5.4181595,87.33,87.301,2.5746488]
[1772610504596,2.71867693,87.338,87.3,7.9928083]
[1772610505284,11.4523924,87.318,87.272,2.5746488]
[1772610505592,14.17106933,87.318,87.28,5.4181595]
[1772610505777,14.17106933,87.318,87.281,2.5746488]
[1772610506199,2.71867693,87.318,87.281,2.5746488]
[1772610506577,5.4181595,87.29,87.26,5.4181595]
[1772610506879,5.4181595,87.29,87.2,5.4181595]
[1772610506880,5.4181595,87.28,87.241,2.5746488]
[1772610507075,2.71867693,87.279,87.241,2.5746488]
[1772610507293,11.45895402,87.268,87.228,11.46420874]
[1772610507598,11.45895402,87.268,87.215,2.5746488]
[1772610507599,5.4181595,87.25,87.215,2.5746488]
[1772610508097,5.4181595,87.24,87.215,14.04047094]
[1772610508295,2.71867693,87.26,87.22,5.4181595]
[1772610508497,5.4181595,87.27,87.24,5.4181595]
[1772610508687,2.71867693,87.269,87.23,5.4181595]
[1772610508994,5.4181595,87.26,87.23,5.4181595]
[1772610509187,2.71867693,87.269,87.24,5.4181595]
[1772610509684,11.45882272,87.269,87.232,2.5746488]
[1772610509892,5.4181595,87.27,87.24,5.4181595]
[1772610510090,11.45802432,87.276,87.24,5.4181595]
[1772610510479,5.4181595,87.27,87.232,2.5746488]
[1772610511082,11.45802432,87.276,87.24,5.4181595]
[1772610511286,5.4181595,87.28,87.25,5.4181595]
[1772610511589,11.45750982,87.279,87.25,5.4181595]
[1772610511894,5.4181595,87.28,87.25,16.8794407]
[1772610512101,2.71867693,87.289,87.251,2.5746488]
[1772610512294,5.4181595,87.28,87.251,2.5746488]
[1772610512614,2.71867693,87.269,87.231,2.5746488]
[1772610513293,5.4181595,87.27,87.24,5.4181595]
[1772610513503,5.4181595,87.27,87.241,11.46250042]
[1772610514991,57.26687706,87.311,87.241,11.46250042]
[1772610514992,2.71867693,87.289,87.25,2.5746488]
[1772610515186,2.71867693,87.301,87.26,5.4181595]
[1772610515400,2.71867693,87.315,87.28,5.4181595]
[1772610515588,2.71867693,87.327,87.29,5.4181595]
[1772610516297,2.71867693,87.327,87.3,5.4181595]
[1772610517202,5.4181595,87.34,87.301,11.45462251]
[1772610517603,5.4181595,87.34,87.31,5.4181595]
[1772610517789,2.71867693,87.342,87.301,40.09117879]
[1772610517790,5.4181595,87.33,87.301,40.09117879]
[1772610517995,5.4181595,87.33,87.301,11.45462251]
[1772610518198,5.4181595,87.32,87.301,11.45462251]
[1772610518402,8.13683643,87.31,87.289,11.45619568]
[1772610518598,2.71867693,87.31,87.284,11.45684682]
[1772610518806,2.71867693,87.31,87.28,5.4181595]
[1772610518986,2.71867693,87.289,87.251,11.46118669]
[1772610519187,163.4,87.354,87.251,11.46118669]
[1772610519188,3.00300007,87.365,87.252,2.5746488]
[1772610519499,3.00300007,87.365,87.251,40.11415341]
[1772610519500,5.4181595,87.32,87.281,2.5746488]
[1772610519703,5.4181595,87.31,87.281,2.5746488]
[1772610519897,5.4181595,87.31,87.27,5.4181595]
[1772610519898,5.4181595,87.34,87.301,2.5746488]
[1772610520402,8.13683643,87.34,87.301,2.5746488]
[1772610520605,2.71867693,87.339,87.301,2.5746488]
[1772610520798,2.71867693,87.329,87.29,5.4181595]
[1772610521005,2.71867693,87.329,87.3,5.4181595]
[1772610521500,5.4181595,87.33,87.301,11.45462251]
[1772610522097,11.45006142,87.336,87.301,11.45462251]
[1772610522301,8.13683643,87.34,87.301,40.09117879]
[1772610523009,11.44963876,87.339,87.301,40.09117879]
[1772610523212,5.4181595,87.33,87.301,40.09117879]
[1772610523414,2.71867693,87.381,87.321,2.5746488]
[1772610523598,5.4181595,87.38,87.341,2.5746488]
[1772610523905,5.4181595,87.37,87.331,2.5746488]
[1772610524108,2.71867693,87.379,87.34,5.4181595]
[1772610524293,2.71867693,87.379,87.341,2.5746488]
[1772610524496,8.13683643,87.39,87.35,7.9928083]
[1772610524717,5.4181595,87.37,87.339,2.5746488]
[1772610524904,57.20231158,87.41,87.306,3.69383402]
[1772610524905,11.44277435,87.392,87.35,5.4181595]
[1772610525108,5.4181595,87.39,87.351,2.5746488]
[1772610525618,5.4181595,87.38,87.35,5.4181595]
[1772610525804,2.71867693,87.379,87.34,16.86756531]
[1772610526003,2.71867693,87.379,87.341,2.5746488]
[1772610526311,2.71867693,87.379,87.35,5.4181595]
[1772610527102,2.71867693,87.379,87.341,2.5746488]
[1772610527812,5.4181595,87.38,87.31,8.51860971]
[1772610527813,2.71867693,87.369,87.334,11.450258]
[1772610528016,8.13683643,87.37,87.333,2.5746488]
[1772610528219,5.4181595,87.36,87.327,11.45120497]
[1772610528390,2.86251665,87.359,87.327,11.45120497]
[1772610529714,2.86251665,87.349,87.311,2.79895575]
[1772610530020,2.86251665,87.349,87.313,2.79895575]
[1772610530232,5.4181595,87.34,87.313,2.79895575]
[1772610530392,5.4181595,87.34,87.31,5.4181595]
[1772610530596,2.86251665,87.329,87.303,11.4543601]
[1772610530792,5.4181595,87.31,87.276,2.79895575]
[1772610531021,2.86251665,87.319,87.281,2.79895575]
[1772610531724,2.86251665,87.347,87.291,2.79895575]
[1772610532047,11.43950709,87.417,87.341,2.79895575]
[1772610532325,11.43902997,87.42,87.381,2.79895575]
[1772610532501,2.86251665,87.419,87.39,5.4181595]
[1772610532809,2.86251665,87.419,87.381,2.79895575]
[1772610533008,2.86251665,87.419,87.38,5.4181595]
[1772610533207,2.86251665,87.419,87.39,5.4181595]
[1772610533408,2.86251665,87.419,87.38,8.21711525]
[1772610533614,2.86251665,87.419,87.39,5.4181595]
[1772610534000,11.43929167,87.418,87.39,16.86109541]
[1772610534917,11.43794799,87.429,87.391,2.79895575]
[1772610535104,11.43794799,87.429,87.4,5.4181595]
[1772610535619,2.86251665,87.456,87.42,5.4181595]
[1772610535915,5.4181595,87.5,87.4,5.4181595]
[1772610535916,2.86251665,87.429,87.4,5.4181595]
[1772610536102,2.86251665,87.429,87.401,11.44151668]
[1772610536303,2.86251665,87.442,87.41,5.4181595]
[1772610536503,11.43537482,87.448,87.42,5.4181595]
[1772610536704,2.86251665,87.454,87.42,5.4181595]
[1772610536905,2.86251665,87.452,87.42,5.4181595]
[1772610537123,2.86251665,87.478,87.44,5.4181595]
[1772610537421,2.86251665,87.468,87.411,2.79895575]
[1772610537713,2.86251665,87.459,87.421,2.79895575]
[1772610538023,14.29657642,87.458,87.421,2.79895575]
[1772610538319,14.29657642,87.458,87.401,28.60379171]
[1772610538320,2.86251665,87.482,87.432,2.79895575]
[1772610538519,11.43186122,87.475,87.432,2.79895575]
[1772610538817,5.37919404,87.48,87.432,2.79895575]
[1772610539024,11.43177137,87.476,87.441,2.79895575]
[1772610539205,11.43262184,87.469,87.441,2.79895575]
[1772610539412,11.43262184,87.469,87.44,5.37919404]
[1772610539608,2.86251665,87.468,87.43,5.37919404]
[1772610539808,2.86251665,87.459,87.42,5.37919404]
[1772610540125,2.86251665,87.465,87.411,2.79895575]
[1772610540419,2.86251665,87.469,87.44,5.37919404]
[1772610540617,2.86251665,87.469,87.43,5.37919404]
[1772610540819,16.91180795,87.47,87.431,2.79895575]
[1772610541128,0.1,87.47,87.44,5.37919404]
[1772610541330,0.1,87.47,87.441,2.79895575]
[1772610542219,0.1,87.47,87.442,11.43615196]
[1772610542524,0.1,87.47,87.45,5.37919404]
[1772610542708,0.1,87.47,87.442,11.43615196]
[1772610542913,0.1,87.47,87.431,2.79895575]
[1772610543120,0.1,87.47,87.43,40.03195426]
[1772610543121,0.1,87.47,87.441,2.79895575]
[1772610543427,0.1,87.47,87.45,5.37919404]
[1772610543723,5.47919404,87.47,87.441,2.79895575]
[1772610543937,0.1,87.47,87.44,5.37919404]
[1772610544235,0.1,87.47,87.45,5.37919404]
[1772610544437,0.1,87.47,87.46,5.37919404]
[1772610544734,0.1,87.47,87.45,5.37919404]
[1772610545022,28.57175161,87.5,87.45,5.37919404]
[1772610545023,2.86251665,87.523,87.451,2.79895575]
[1772610545225,2.86251665,87.523,87.45,40.02278377]
[1772610545226,2.86251665,87.512,87.468,2.79895575]
[1772610545432,2.86251665,87.51,87.48,5.37919404]
[1772610545727,2.86251665,87.509,87.48,5.37919404]
[1772610545931,2.86251665,87.499,87.46,8.17814979]
[1772610546132,2.86251665,87.479,87.43,2.79895575]
[1772610546432,2.86251665,87.487,87.46,5.37919404]
[1772610546735,2.86251665,87.469,87.429,2.79895575]
[1772610546938,2.86251665,87.459,87.42,5.37919404]
[1772610547241,2.86251665,87.459,87.361,1.14467554]
[1772610547540,2.86251665,87.429,87.39,5.37919404]
[1772610547846,2.86251665,87.429,87.4,5.37919404]
[1772610548339,2.86251665,87.449,87.391,2.79895575]
[1772610548633,2.86251665,87.44,87.41,5.37919404]
[1772610549012,11.43510577,87.45,87.42,5.37919404]
[1772610549343,2.86251665,87.469,87.44,5.37919404]
[1772610549638,3.14683979,87.505,87.44,5.37919404]
[1772610549840,8.24171069,87.48,87.45,5.37919404]
[1772610550015,2.86251665,87.479,87.44,5.37919404]
[1772610550334,2.86251665,87.458,87.393,2.79895575]
[1772610550509,2.86251665,87.429,87.4,5.37919404]
[1772610550713,2.86251665,87.412,87.368,2.79895575]
[1772610550906,2.86251665,87.412,87.36,0.2]
[1772610550907,5.37919404,87.43,87.39,5.37919404]
[1772610551110,5.37919404,87.45,87.381,2.79895575]
[1772610551111,5.37919404,87.41,87.381,2.79895575]
[1772610551323,2.86251665,87.429,87.39,5.37919404]
[1772610551721,5.37919404,87.42,87.39,5.37919404]
[1772610552120,5.37919404,87.42,87.381,2.79895575]
[1772610553213,2.86251665,87.427,87.39,5.37919404]
[1772610553613,5.37919404,87.42,87.381,2.79895575]
[1772610553818,5.37919404,87.42,87.37,11.44553902]
[1772610553819,2.86251665,87.399,87.37,5.37919404]
[1772610554026,5.37919404,87.42,87.38,5.37919404]
[1772610554230,2.86251665,87.409,87.371,2.79895575]
[1772610554728,2.86251665,87.407,87.371,2.79895575]
[1772610555734,40.0421014,87.408,87.36,0.2]
[1772610555735,5.37919404,87.39,87.36,0.2]
[1772610555938,2.86251665,87.399,87.36,5.57919404]
[1772610556325,2.86251665,87.399,87.36,8.37814979]
[1772610556529,2.86251665,87.399,87.37,5.37919404]
[1772610556927,2.86251665,87.397,87.37,5.37919404]
[1772610557123,2.86251665,87.397,87.36,8.37814979]
[1772610557337,2.86251665,87.389,87.36,5.57919404]
[1772610557723,5.37919404,87.42,87.38,5.37919404]
[1772610557932,2.86251665,87.419,87.38,8.17814979]
[1772610558139,2.86251665,87.419,87.39,5.37919404]
[1772610558336,2.86251665,87.419,87.38,2.79895575]
[1772610558846,2.86251665,87.419,87.39,5.37919404]
[1772610559139,11.43929167,87.418,87.39,5.37919404]
[1772610559350,5.37919404,87.41,87.38,8.17814979]
[1772610559531,5.37919404,87.41,87.38,5.37919404]
[1772610559734,2.87862813,87.399,87.361,2.99896029]
[1772610559922,40.03752086,87.418,87.39,5.37919404]
[1772610560243,11.43929167,87.418,87.39,5.37919404]
[1772610560433,11.43667512,87.438,87.41,5.37919404]
[1772610560621,163.4,87.482,87.43,5.37919404]
[1772610560622,11.43458275,87.454,87.43,5.37919404]
[1772610560829,11.43458275,87.454,87.42,8.3249685]
[1772610561426,2.94326681,87.453,87.42,5.37919404]
[1772610561824,2.94326681,87.449,87.41,2.94577446]
[1772610562037,2.94326681,87.449,87.42,5.37919404]
[1772610563130,11.43392904,87.459,87.43,5.37919404]
[1772610563541,28.58253949,87.466,87.43,5.37919404]
[1772610563721,28.58253949,87.466,87.427,2.94577446]
[1772610563722,5.37919404,87.46,87.427,2.94577446]
[1772610564437,2.94326681,87.459,87.42,5.37919404]
[1772610564661,11.43262184,87.469,87.431,2.94577446]
[1772610564946,11.43262184,87.469,87.441,2.94577446]
[1772610565635,42.95424124,87.476,87.441,2.94577446]
[1772610565841,2.94326681,87.469,87.397,2.94577446]
[1772610566027,2.94326681,87.457,87.42,5.37919404]
[1772610566930,5.37919404,87.45,87.42,5.37919404]
[1772610567134,2.94326681,87.459,87.42,5.37919404]
[1772610567646,11.43405977,87.458,87.43,5.37919404]
[1772610567835,11.43343526,87.463,87.44,5.37919404]
[1772610568034,11.43281142,87.468,87.44,5.37919404]
[1772610568238,2.94326681,87.467,87.44,5.37919404]
[1772610568437,2.94326681,87.467,87.432,2.94577446]
[1772610568747,11.43281142,87.468,87.41,5.37919404]
[1772610568748,5.37919404,87.44,87.41,5.37919404]
[1772610569450,5.37919404,87.44,87.402,2.94577446]
[1772610569864,45.71668485,87.496,87.4,5.37919404]
[1772610569865,2.94326681,87.493,87.431,2.94577446]
[1772610570027,2.94326681,87.479,87.45,5.37919404]
[1772610570540,2.94326681,87.479,87.44,5.37919404]
[1772610570928,2.94326681,87.479,87.403,103.21956761]
[1772610570929,2.94326681,87.479,87.45,5.37919404]
[1772610571127,2.94326681,87.479,87.441,2.94577446]
[1772610571332,2.94326681,87.479,87.45,5.37919404]
[1772610571634,2.94326681,87.479,87.441,2.94577446]
[1772610571849,2.94326681,87.477,87.441,2.94577446]
[1772610572350,2.94326681,87.477,87.45,5.37919404]
[1772610573055,2.94326681,87.477,87.441,14.38194182]
[1772610573349,40.01005967,87.478,87.441,2.94577446]
[1772610573651,28.56862223,87.509,87.471,2.94577446]
[1772610573846,2.94326681,87.499,87.47,5.37919404]
[1772610574550,2.94326681,87.489,87.46,5.37919404]
[1772610576236,11.43013899,87.488,87.461,2.94577446]
[1772610576538,2.94326681,87.487,87.45,5.37919404]
[1772610577052,2.94326681,87.487,87.451,2.94577446]
[1772610577354,11.43013899,87.488,87.451,2.94577446]
[1772610577547,45.68026551,87.566,87.464,2.94577446]
[1772610577548,5.37919404,87.49,87.464,2.94577446]
[1772610577753,11.42955486,87.493,87.464,2.94577446]
[1772610577941,5.37919404,87.49,87.453,2.94577446]
[1772610578451,5.37919404,87.48,87.453,2.94577446]
[1772610578758,2.94326681,87.489,87.453,2.94577446]
[1772610579254,11.42974705,87.491,87.461,2.94577446]
[1772610579452,11.42900359,87.497,87.47,8.3249685]
[1772610580348,11.42900359,87.497,87.47,2.94577446]
[1772610580555,5.37919404,87.48,87.454,2.94577446]
[1772610581556,5.37919404,87.48,87.445,2.94577446]
[1772610581940,40.00548646,87.488,87.445,2.94577446]
[1772610582257,5.37919404,87.48,87.445,2.94577446]
[1772610582960,2.94326681,87.469,87.431,2.94577446]
[1772610583664,5.37919404,87.45,87.421,2.94577446]
[1772610583865,5.37919404,87.44,87.411,2.94577446]
[1772610584236,2.94326681,87.459,87.42,5.37919404]
[1772610584455,5.37919404,87.45,87.421,2.94577446]
[1772610585167,5.37919404,87.44,87.41,2.94577446]
[1772610585359,2.94326681,87.429,87.4,5.37919404]
[1772610586151,5.37919404,87.41,87.363,2.94577446]
[1772610586462,16.81960068,87.41,87.381,2.94577446]
[1772610586652,5.37919404,87.4,87.37,5.37919404]
[1772610586851,14.38367345,87.41,87.371,2.94577446]
[1772610586852,19.76286749,87.41,87.371,2.94577446]
[1772610587057,5.37919404,87.42,87.391,2.94577446]
[1772610587942,5.37919404,87.41,87.38,8.3249685]
[1772610588160,5.37919404,87.41,87.364,3.02941755]
[1772610588161,11.44046951,87.409,87.364,3.02941755]
[1772610588459,11.44046951,87.409,87.38,5.37919404]
[1772610590281,3.01616144,87.399,87.366,3.02941755]
[1772610590565,3.01616144,87.399,87.36,5.57919404]
[1772610590566,3.01616144,87.399,87.37,5.37919404]
[1772610591946,3.01616144,87.399,87.367,14.47538685]
[1772610591947,3.01616144,87.399,87.367,3.02941755]
[1772610592153,3.01616144,87.399,87.37,5.37919404]
[1772610592348,14.45807086,87.398,87.367,3.02941755]
[1772610592866,3.01616144,87.397,87.361,11.4466403]
[1772610593050,3.01616144,87.389,87.36,0.2]
[1772610593256,3.01616144,87.389,87.361,11.44675541]
[1772610593862,3.01616144,87.389,87.36,0.2]
[1772610594761,3.01616144,87.389,87.361,11.44675541]
[1772610596854,3.01616144,87.399,87.37,5.37919404]
[1772610597070,5.37919404,87.38,87.36,0.2]
[1772610597261,3.01616144,87.379,87.36,0.2]
[1772610597769,3.01616144,87.369,87.34,5.37919404]
[1772610597956,3.01616144,87.369,87.337,11.44978034]
[1772610598155,3.01616144,87.369,87.332,11.45054991]
[1772610599365,3.01616144,87.367,87.332,11.45054991]
[1772610599966,11.44583829,87.368,87.34,8.40861159]
[1772610600164,3.01616144,87.367,87.332,11.45054991]
[1772610600362,3.01616144,87.359,87.33,5.37919404]
[1772610600564,5.39434791,87.35,87.322,3.02941755]
[1772610600764,3.01616144,87.339,87.301,3.02941755]
[1772610601081,5.39434791,87.32,87.299,0.99437565]
[1772610601261,5.39434791,87.31,87.299,0.16783032]
[1772610601458,5.39434791,87.31,87.281,11.45718585]
[1772610601459,3.01616144,87.309,87.28,5.59434791]
[1772610601656,3.01616144,87.338,87.301,3.02941755]
[1772610601860,3.01616144,87.329,87.291,3.02941755]
[1772610602177,3.01616144,87.309,87.28,0.2]
[1772610602377,8.41050935,87.3,87.28,0.2]
[1772610602561,3.01616144,87.289,87.243,3.02941755]
[1772610602757,3.01616144,87.289,87.166,45.88901141]
[1772610602758,3.01616144,87.279,87.25,5.39434791]
[1772610602961,3.01616144,87.289,87.251,3.02941755]
[1772610603362,3.01616144,87.309,87.271,3.02941755]
[1772610603972,3.01616144,87.309,87.29,5.39434791]
[1772610604278,3.01616144,87.319,87.282,3.02941755]
[1772610604789,3.01616144,87.319,87.29,5.39434791]
[1772610605295,3.01616144,87.329,87.29,8.42376546]
[1772610605482,5.39434791,87.31,87.28,5.39434791]
[1772610605676,3.01616144,87.319,87.29,5.39434791]
[1772610605873,3.01616144,87.319,87.281,3.02941755]
[1772610606178,3.01616144,87.319,87.29,5.39434791]
[1772610606369,3.01616144,87.319,87.281,3.02941755]
[1772610606769,3.01616144,87.319,87.29,5.39434791]
[1772610607581,3.01616144,87.319,87.282,11.45711601]
[1772610607772,3.01616144,87.317,87.282,11.45711601]
[1772610608285,3.01616144,87.317,87.27,0.5]
[1772610608488,5.39434791,87.28,87.251,3.02941755]
[1772610608800,5.39434791,87.3,87.27,8.42376546]
[1772610609163,3.01616144,87.299,87.27,5.39434791]
[1772610609577,11.45501615,87.298,87.27,5.39434791]
[1772610609777,3.01616144,87.297,87.261,14.4892908]
[1772610610073,3.01616144,87.297,87.261,3.02941755]
[1772610610270,3.01616144,87.297,87.27,5.39434791]
[1772610610482,3.01616144,87.297,87.261,3.02941755]
[1772610611268,3.01616144,87.289,87.25,5.39434791]
[1772610611472,3.01616144,87.289,87.251,3.02941755]
[1772610611672,3.01616144,87.289,87.26,5.39434791]
[1772610611872,14.47144003,87.296,87.27,5.39434791]
[1772610612182,3.01616144,87.295,87.27,5.39434791]
[1772610612375,11.45440094,87.303,87.27,5.39434791]
[1772610612583,3.01616144,87.302,87.27,5.39434791]
[1772610612890,3.01616144,87.299,87.261,3.02941755]
[1772610613389,14.47111938,87.299,87.27,5.39434791]
[1772610613588,3.01616144,87.298,87.263,3.02941755]
[1772610614186,3.01616144,87.298,87.27,5.39434791]
[1772610614685,3.01616144,87.298,87.263,3.02941755]
[1772610614896,5.39434791,87.29,87.263,3.02941755]
[1772610615208,3.01616144,87.279,87.25,5.39434791]
[1772610615373,3.01616144,87.277,87.241,11.46250042]
[1772610615574,3.01616144,87.277,87.242,3.02941755]
[1772610615773,5.39434791,87.27,87.242,3.02941755]
[1772610615974,5.39434791,87.27,87.235,11.46318247]
[1772610615975,3.01616144,87.269,87.235,11.46318247]
[1772610616575,3.01616144,87.279,87.25,5.39434791]
[1772610616773,5.39434791,87.29,87.26,5.39434791]
[1772610616774,3.01616144,87.289,87.26,5.39434791]
[1772610617206,3.01616144,87.289,87.251,3.02941755]
[1772610617379,11.45632847,87.288,87.253,3.02941755]
[1772610617737,3.01616144,87.287,87.253,3.02941755]
[1772610618072,3.01616144,87.287,87.26,5.39434791]
[1772610618593,3.01616144,87.287,87.253,3.02941755]
[1772610618985,3.06438775,87.298,87.26,5.39434791]
[1772610619381,3.06438775,87.289,87.25,5.39434791]
[1772610619584,3.06438775,87.279,87.24,5.39434791]
[1772610619780,3.06438775,87.279,87.241,11.46250042]
[1772610620103,3.06438775,87.279,87.242,3.20748042]
[1772610620301,3.06438775,87.279,87.25,5.39434791]
[1772610620498,11.45514737,87.297,87.261,3.0449617]
[1772610620796,3.11383969,87.296,87.261,3.0449617]
[1772610621009,3.11383969,87.296,87.251,3.0449617]
[1772610621297,3.11383969,87.296,87.241,40.11875149]
[1772610621298,3.11383969,87.296,87.261,3.0449617]
[1772610621504,3.11383969,87.296,87.27,5.39434791]
[1772610621709,3.11383969,87.289,87.26,5.39434791]
[1772610621876,3.11383969,87.279,87.241,3.0449617]